fUSD/lending_fUSD_20260207
["ID","MTS","AMOUNT","RATE_DAILY","PERIOD"]
[404681810,1770433838441,-307.75896018,0.00013075,2]
[404681811,1770433838450,-2296.14,0.00013099,2]
[404681812,1770433838460,-2296.14,0.00013123,2]
[404681813,1770433838469,-2296.14,0.00013147,2]
[404681814,1770433838479,-2296.14,0.00013172,2]
[404681815,1770433838488,-2296.14,0.00013196,2]
[404681816,1770433838498,-2296.14,0.0001322,2]
[404681817,1770433838507,-1875.33851422,0.00013244,2]
[404681818,1770433838519,-420.80148578,0.00013244,2]
[404681819,1770433838528,-2296.14,0.00013268,2]
[404681820,1770433838537,-2296.14,0.00013292,2]
[404681821,1770433838546,-2296.14,0.00013316,2]
[404681822,1770433838555,-840.97851422,0.0001334,2]
[404681823,1770433838568,-1455.16148578,0.0001334,2]
[404681824,1770433838577,-2695.54168218,0.0001336,2]
[404681825,1770433838588,-1300.6176767,0.0001336,2]
[404681826,1770433838603,-2253.09560657,0.0001336,2]
[404681829,1770433840381,-151.03584209,0.0001336,2]
[404681831,1770433840390,-298.45915791,0.0001336,2]
[404681833,1770433840401,-2947.12301232,0.0001336,2]
[404681834,1770433840410,-2296.14,0.00013364,2]
[404681835,1770433840419,-2296.14,0.00013388,2]
[404681837,1770433840428,-2296.14,0.00013412,2]
[404681838,1770433840437,-3240.0,0.00013425,2]
[404681839,1770433840446,-2296.14,0.00013436,2]
[404681840,1770433840455,-2296.14,0.00013461,2]
[404681841,1770433840464,-2296.14,0.00013485,2]
[404681842,1770433840473,-2296.14,0.00013509,2]
[404681843,1770433840482,-2296.14,0.00013533,2]
[404681844,1770433840491,-1000.0,0.00013567,2]
[404681845,1770433840499,-2648.01821693,0.00013599,2]
[404681846,1770433840508,-500.0,0.00013698,2]
[404681847,1770433840517,-506.382575,0.00013698,2]
[404681848,1770433840526,-500.0,0.00013698,2]
[404681849,1770433840535,-500.0,0.00013698,2]
[404681850,1770433840544,-500.0,0.00013698,2]
[404681851,1770433840553,-500.0,0.00013698,2]
[404681852,1770433840563,-500.0,0.00013698,2]
[404681853,1770433840572,-500.0,0.00013698,2]
[404681854,1770433840581,-500.0,0.00013698,2]
[404681855,1770433840590,-500.0,0.00013698,2]
[404681856,1770433840599,-281.16658978,0.00013698,2]
[404681857,1770433840609,-500.0,0.00013698,2]
[404681858,1770433840618,-433.48116845,0.00013698,2]
[404681859,1770433840627,-927.89088149,0.00013699,2]
[404681860,1770433840638,-280.57291856,0.00013699,2]
[404681861,1770433840649,-351.97,0.00013699,2]
[404681862,1770433840664,-14698.88619995,0.00013699,2]
[404681863,1770433840673,-200.0,0.00013699,2]
[404681864,1770433840683,-7882.73,0.00013699,2]
[404681865,1770433840691,-822.71,0.00013699,2]
[404681866,1770433840700,-511.17251501,0.00013699,2]
[404681867,1770433840716,-501.58342039,0.00013699,2]
[404681868,1770433840726,-502.71573821,0.00013699,2]
[404681869,1770433840734,-500.71876563,0.00013699,2]
[404681870,1770433840743,-500.82082584,0.00013699,2]
[404681871,1770433840752,-232.48282443,0.00013699,2]
[404681872,1770433840761,-500.53646167,0.00013699,2]
[404681873,1770433840770,-501.54780201,0.00013699,2]
[404681874,1770433840779,-500.96112568,0.00013699,2]
[404681875,1770433840788,-500.83175848,0.00013699,2]
[404681876,1770433840797,-501.34047747,0.00013699,2]
[404681877,1770433840806,-501.0806738,0.00013699,2]
[404681878,1770433840817,-502.51898619,0.00013699,2]
[404681879,1770433840826,-500.85471823,0.00013699,2]
[404681880,1770433840835,-501.56384225,0.00013699,2]
[404681881,1770433840845,-500.9102189,0.00013699,2]
[404681882,1770433840853,-501.66346895,0.00013699,2]
[404681883,1770433840862,-500.87567623,0.00013699,2]
[404681885,1770433840872,-500.82365782,0.00013699,2]
[404681887,1770433840880,-500.0,0.00013699,2]
[404681888,1770433840894,-327.45326444,0.00013699,2]
[404681889,1770433840904,-500.75752829,0.00013699,2]
[404681890,1770433840913,-500.44572838,0.00013699,2]
[404681891,1770433840923,-500.75477963,0.00013699,2]
[404681892,1770433840932,-500.71966823,0.00013699,2]
[404681893,1770433840941,-500.48421576,0.00013699,2]
[404681894,1770433840950,-500.95442163,0.00013699,2]
[404681895,1770433840959,-501.03785696,0.00013699,2]
[404681896,1770433840967,-555.01216598,0.00013699,2]
[404681897,1770433840976,-501.79374222,0.00013699,2]
[404681898,1770433840985,-504.97187876,0.00013699,2]
[404681899,1770433840994,-501.52124127,0.00013699,2]
[404681900,1770433841003,-501.62253094,0.00013699,2]
[404681901,1770433841012,-500.6237443,0.00013699,2]
[404681902,1770433841021,-501.16814505,0.00013699,2]
[404681903,1770433841030,-502.0240799,0.00013699,2]
[404681904,1770433841039,-500.0,0.00013699,2]
[404681905,1770433841049,-501.17265421,0.00013699,2]
[404681906,1770433841059,-501.23769089,0.00013699,2]
[404681907,1770433841068,-500.54678551,0.00013699,2]
[404681908,1770433841077,-501.03613157,0.00013699,2]
[404681909,1770433841087,-500.86071742,0.00013699,2]
[404681910,1770433841096,-1252.0,0.0001375,2]
[404681911,1770433841105,-152.0,0.000138,4]
[404681912,1770433841114,-2526.1098611,0.00013888,2]
[404681913,1770433841123,-16290.9936661,0.00013896,2]
[404681914,1770433841133,-9494.83713568,0.00013928,2]
[404681915,1770433841142,-160.0,0.00013966,2]
[404681916,1770433841151,-2992.3855955,0.00014085,2]
[404681917,1770433841161,-1815.5716742,0.00014136,2]
[404681918,1770433841170,-869.6,0.00014176,2]
[404681919,1770433841179,-14101.3049832,0.00014187,2]
[404681920,1770433841188,-2648.01821689,0.00014213,2]
[404681921,1770433841198,-822.71,0.00014384,2]
[404681922,1770433841208,-1600.0,0.00014388,2]
[404681923,1770433841217,-869.6,0.0001445,2]
[404681924,1770433841226,-151.0,0.00014492,2]
[404681925,1770433841235,-9494.83713568,0.00014495,2]
[404681926,1770433841246,-3146.4264392,0.00014543,2]
[404681927,1770433841256,-1968.89696187,0.00014674,2]
[404681928,1770433841265,-869.6,0.00014724,2]
[404681929,1770433841274,-2648.01821689,0.00014828,2]
[404681930,1770433841283,-152.0,0.00014925,5]
[404681931,1770433841294,-869.6,0.00014998,2]
[404681932,1770433841303,-250.0,0.00015,2]
[404681933,1770433841314,-9494.83713568,0.00015063,2]
[404681934,1770433841324,-822.71,0.00015068,2]
[404681935,1770433841333,-1000.0,0.00015074,2]
[404681936,1770433841342,-17002.4815303,0.00015115,2]
[404681937,1770433841351,-2526.1098611,0.00015189,2]
[404681938,1770433841359,-16290.9936661,0.00015205,2]
[404681939,1770433841368,-193.1584119,0.00015215,2]
[404681940,1770433841377,-151.59,0.00015251,2]
[404681941,1770433841386,-451.34,0.00015272,2]
[404681942,1770433841395,-17002.48153022,0.00015424,2]
[404681943,1770433841403,-2648.01821689,0.00015442,2]
[404681944,1770433841412,-2992.3855955,0.00015583,2]
[404681945,1770433841421,-9494.83713568,0.0001563,2]
[404681946,1770433841431,-453.527216,0.00015675,7]
[404681947,1770433841440,-1815.5716742,0.00015684,2]
[404681948,1770433841449,-280.2,0.00015707,2]
[404681949,1770433841459,-17002.48153022,0.00015734,2]
[404681950,1770433841468,-4884.0,0.00015753,2]
[404681951,1770433841478,-822.71,0.00015753,2]
[404681952,1770433841487,-1600.0,0.00015827,2]
[404681953,1770433841497,-1500.0,0.000159,2]
[404681954,1770433841506,-198.04,0.00015942,2]
[404681955,1770433841515,-17002.48153022,0.00016043,2]
[404681956,1770433841524,-152.0,0.0001605,6]
[404681957,1770433841533,-2648.01821689,0.00016057,2]
[404681958,1770433841542,-600.0,0.0001609,2]
[404681959,1770433841552,-9494.83713568,0.00016198,2]
[404681960,1770433841561,-1500.0,0.000162,2]
[404681961,1770433841571,-1968.89696187,0.00016334,2]
[404681962,1770433841581,-17002.48153022,0.00016353,2]
[404681963,1770433841590,-822.71,0.00016438,2]
[404681964,1770433841599,-800.0,0.00016438,2]
[404681965,1770433841608,-1000.0,0.00016438,2]
[404681966,1770433841617,-2526.1098611,0.00016489,2]
[404681967,1770433841626,-1500.0,0.000165,2]
[404681968,1770433841635,-16290.9936661,0.00016514,2]
[404681969,1770433841644,-1000.0,0.00016582,2]
[404681970,1770433841653,-17002.48153022,0.00016662,2]
[404681971,1770433841662,-2648.01821689,0.00016671,2]
[404681972,1770433841671,-1000.0,0.00016712,2]
[404681973,1770433841680,-165.79,0.00016712,2]
[404681974,1770433841689,-9494.83713568,0.00016765,2]
[404681975,1770433841699,-186.78,0.00016801,2]
[404681976,1770433841708,-777.84,0.00016814,2]
[404681977,1770433841717,-17002.48153022,0.00016972,2]
[404681978,1770433841726,-1999.0,0.00016986,2]
[404681979,1770433841735,-500.0,0.00017,2]
[404681980,1770433841744,-300.0,0.00017,2]
[404681981,1770433841753,-200.0,0.00017,6]
[404681982,1770433841762,-2992.3855955,0.0001708,2]
[404681983,1770433841771,-209.40437684,0.00017099,2]
[404681984,1770433841781,-1500.0,0.000171,2]
[404681985,1770433841790,-400.0,0.000171,6]
[404681986,1770433841799,-206.511,0.00017139,2]
[404681987,1770433841808,-150.0,0.00017139,2]
[404681988,1770433841817,-3255.0,0.00017139,2]
[404681989,1770433841826,-6584.0,0.00017139,2]
[404681990,1770433841835,-412.0,0.00017139,2]
[404681991,1770433841844,-217.15233878,0.00017154,2]
[404681992,1770433841853,-152.0,0.00017175,7]
[404681993,1770433841863,-600.0,0.000172,6]
[404681994,1770433841872,-225.18697532,0.00017209,2]
[404681995,1770433841881,-1815.5716742,0.00017233,2]
[404681996,1770433841890,-1000.0,0.0001726,2]
[404681997,1770433841899,-233.51889341,0.00017264,2]
[404681998,1770433841908,-1600.0,0.00017266,2]
[404681999,1770433841917,-17002.48153022,0.00017281,2]
[404682000,1770433841926,-2648.01821689,0.00017286,2]
[404682001,1770433841934,-800.0,0.000173,6]
[404682002,1770433841943,-242.15909246,0.00017319,2]
[404682003,1770433841952,-9494.83713568,0.00017333,2]
[404682004,1770433841961,-251.11897888,0.00017374,2]
[404682005,1770433841970,-347.912,0.000174,2]
[404682006,1770433841979,-4199.452,0.000174,2]
[404682007,1770433841989,-1685.0,0.000174,2]
[404682008,1770433841998,-1000.0,0.000174,6]
[404682009,1770433842007,-260.4103811,0.00017429,2]
[404682010,1770433842016,-280.2,0.00017449,2]
[404682011,1770433842025,-270.0455652,0.00017484,2]
[404682012,1770433842185,-200.0,0.000175,6]
[404682013,1770433842195,-720.07142971,0.00017534,2]
[404682014,1770433842205,-1000.0,0.00017534,2]
[404682015,1770433842214,-280.03725112,0.00017539,2]
[404682016,1770433842223,-17002.48153022,0.00017591,2]
[404682017,1770433842232,-290.39862941,0.00017594,2]
[404682018,1770433842245,-200.0,0.000176,6]
[404682019,1770433842254,-1728.27374882,0.0001764,2]
[404682020,1770433842263,-301.1433787,0.00017649,2]
[404682021,1770433842273,-1500.0,0.000177,2]
[404682022,1770433842282,-200.0,0.000177,6]
[404682023,1770433842291,-198.04,0.00017798,2]
[404682024,1770433842301,-500.0,0.00017799,2]
[404682025,1770433842312,-200.0,0.000178,6]
[404682026,1770433842321,-150.0,0.00017808,2]
[404682027,1770433842330,-1000.0,0.00017808,2]
[404682028,1770433842339,-201.07511,0.0001782,2]
[404682029,1770433842348,-201.07511,0.0001782,2]
[404682030,1770433842357,-200.0,0.00017856,2]
[404682031,1770433842366,-150.0,0.00017863,2]
[404682032,1770433842375,-153.58,0.0001789,2]
[404682033,1770433842385,-151.0,0.00017897,2]
[404682034,1770433842394,-500.0,0.000179,2]
[404682035,1770433842403,-193.1584119,0.000179,2]
[404682036,1770433842412,-18283.15527785,0.000179,3]
[404682037,1770433842421,-9494.83713568,0.000179,2]
[404682038,1770433842430,-17002.48153022,0.000179,2]
[404682039,1770433842439,-232.0,0.000179,6]
[404682040,1770433842448,-1590.80562284,0.000179,3]
[404682041,1770433842457,-2648.01821689,0.000179,2]
[404682042,1770433842466,-7084.62707322,0.000179,2]
[404682043,1770433842475,-52664.12797342,0.000179,2]
[404682044,1770433842484,-1601.82159352,0.000179,2]
[404682045,1770433842493,-174.05725526,0.000179,2]
[404682046,1770433842502,-203.91426758,0.00017918,2]
[404682047,1770433842511,-382.53579138,0.00017941,2]
[404682048,1770433842520,-967.0,0.00017973,2]
[404682049,1770433842529,-443.92759424,0.0001799,2]
[404682050,1770433842539,-443.92759424,0.0001799,2]
[404682051,1770433842548,-443.92759424,0.0001799,2]
[404682052,1770433842558,-2757.675609,0.00017993,2]
[404682053,1770433842568,-1968.89696187,0.00017995,2]
[404682054,1770433842578,-151.0,0.00017997,2]
[404682055,1770433842588,-300.0,0.00017999,2]
[404682056,1770433842598,-300.0,0.00017999,2]
[404682057,1770433842607,-300.0,0.00017999,2]
[404682058,1770433842617,-666.0,0.00017999,2]
[404682059,1770433842627,-300.0,0.00017999,2]
[404682060,1770433842636,-666.0,0.00017999,2]
[404682061,1770433842645,-300.0,0.00017999,2]
[404682062,1770433842654,-666.0,0.00017999,2]
[404682063,1770433842663,-300.0,0.00017999,2]
[404682064,1770433842673,-1577923.0637531,0.00018,2]
[404682065,1770433842686,-9941.74180896,0.00018,2]
[404682066,1770433842701,-165477.65506836,0.00018,2]
[404682067,1770433842712,-66898.37856791,0.00018,2]
[404682068,1770433842723,-386.49005528,0.00018,2]
[404682069,1770433842734,-1219.4810845,0.00018,2]
[404682070,1770433844078,-599703.58276873,0.00018,2]
[404682071,1770433844938,-6104.36727923,0.00018,2]
[404682072,1770433844951,-4441.23959371,0.00018,2]
[404682073,1770433845048,-7278.78791481,0.00018,2]
[404682074,1770433845059,-557.96001026,0.00018,2]
[404682075,1770433845070,-345.99860319,0.00018,2]
[404682098,1770433846380,-244921.42492602,0.00018,2]
[404682099,1770433846427,-15.04811477,0.00018,2]
[404682100,1770433846436,-715.41878622,0.00018,2]
[404682101,1770433846611,-1477.92874575,0.00018,2]
[404682102,1770433846623,-2187.31524543,0.00018,2]
[404682103,1770433846673,-521.50544742,0.00018,2]
[404682116,1770433859440,250.0,0.00035068,120]
[404682117,1770433874630,3345.64,0.00035616,120]
[404682118,1770433875176,250.0,0.00035068,120]
[404682119,1770433889221,250.0,0.00035068,120]
[404682120,1770433900903,250.0,0.00035068,120]
[404682121,1770433914244,250.0,0.00035068,120]
[404682122,1770433915723,6445.8,0.00035616,120]
[404682123,1770433928213,100000.0,0.00035616,120]
[404682124,1770433928658,250.0,0.00035068,120]
[404682125,1770433944468,250.0,0.00035068,120]
[404682126,1770433960410,250.0,0.00035068,120]
[404682127,1770433980756,250.0,0.00035068,120]
[404682128,1770433987574,100000.0,0.00035616,120]
[404682129,1770434008872,50000.0,0.00035616,120]
[404682132,1770434391835,969.62,0.0002,14]
[404682133,1770434687416,1503.45186351,8e-05,2]
[404682135,1770434801108,-398.08280932,0.000108,2]
[404682140,1770434943682,3061.719,0.00035616,120]
[404682144,1770435031461,-631.6999239,0.000108,2]
[404682146,1770435031471,-1200.0,0.00010999,2]
[404682148,1770435031481,-300.0,0.00010999,2]
[404682150,1770435031490,-2409.4999761,0.00011,2]
[404682152,1770435031501,-1618.69655315,0.00011,2]
[404682154,1770435031621,-1217.37507571,0.00011,2]
[404682155,1770435031633,-3668.11136025,0.00011,2]
[404682157,1770435037514,-528.49185659,0.00011,2]
[404682158,1770435037524,-195.0,0.00011008,2]
[404682159,1770435037534,-1827.90334796,0.00011074,2]
[404682160,1770435037543,-195.0,0.00011169,2]
[404682161,1770435037553,-195.0,0.0001188,2]
[404682162,1770435037563,-195.0,0.0001188,2]
[404682163,1770435037572,-174.53725634,0.00011974,2]
[404682164,1770435037582,-165.92,0.00012074,2]
[404682165,1770435037594,-248.0,0.00012099,2]
[404682166,1770435037603,-1827.90334796,0.00012679,2]
[404682167,1770435037613,-952.64,0.00013118,2]
[404682168,1770435037622,-152.0,0.00013158,3]
[404682169,1770435037631,-1229.72023467,0.000135,2]
[404682170,1770435037644,-299.8934956,0.000135,2]
[404682171,1770435037653,-200.0,0.000136,4]
[404682172,1770435037662,-3078.7565044,0.00013692,2]
[404682173,1770435037674,-161.2434956,0.00013692,2]
[404682174,1770435037683,-150.0,0.00013698,2]
[404682175,1770435037693,-42.7912186,0.00013699,2]
[404682176,1770435037704,-226.32229905,0.00013699,2]
[404682177,1770435037713,-501.79374222,0.00013699,2]
[404682178,1770435037722,-504.97187876,0.00013699,2]
[404682179,1770435037731,-501.62253094,0.00013699,2]
[404682180,1770435037741,-501.52124127,0.00013699,2]
[404682181,1770435037750,-293.09330674,0.00013699,2]
[404682182,1770435037759,-500.6237443,0.00013699,2]
[404682183,1770435037768,-501.16814505,0.00013699,2]
[404682184,1770435037777,-502.0240799,0.00013699,2]
[404682185,1770435037786,-500.48421576,0.00013699,2]
[404682186,1770435037795,-500.95442163,0.00013699,2]
[404682187,1770435037805,-501.23769089,0.00013699,2]
[404682188,1770435037814,-501.17265421,0.00013699,2]
[404682189,1770435037823,-501.03613157,0.00013699,2]
[404682190,1770435037832,-500.54678551,0.00013699,2]
[404682191,1770435037841,-500.86071742,0.00013699,2]
[404682193,1770435037850,-400.0,0.000137,5]
[404682195,1770435037859,-600.0,0.000138,5]
[404682197,1770435037868,-800.0,0.000139,5]
[404682199,1770435037877,-967.0,0.00013918,2]
[404682201,1770435037886,-443.92759424,0.00013936,2]
[404682203,1770435037895,-174.53725633,0.00013944,2]
[404682205,1770435037905,-7596.69821387,0.00013944,2]
[404682207,1770435037913,-533.94053118,0.00013944,2]
[404682209,1770435037922,-2317.01593984,0.00013944,2]
[404682211,1770435037932,-174.05725526,0.00013944,2]
[404682214,1770435037941,-13757.88962407,0.00013944,2]
[404682216,1770435037953,-3796.81970041,0.00013944,2]
[404682218,1770435037962,-3353.38029959,0.00013944,2]
[404682220,1770435037977,-760.766732,0.00013944,2]
[404682222,1770435037987,-357.8,0.00013944,2]
[404682225,1770435038000,-728.02094914,0.00013944,2]
[404682245,1770435039609,-574.744,0.00013944,2]
[404682246,1770435039620,-719.12599325,0.00013944,2]
[404682247,1770435039636,-12.95839457,0.00013944,2]
[404682248,1770435039646,-2504.76769578,0.00013944,2]
[404682249,1770435039655,-165.30180022,0.00013945,2]
[404682250,1770435039664,-500.0,0.00013945,2]
[404682251,1770435039675,-309.95974672,0.00013945,2]
[404682252,1770435039684,-500.0,0.00013945,2]
[404682253,1770435039694,-205.71118227,0.00013945,2]
[404682254,1770435039703,-500.0,0.00013945,2]
[404682255,1770435039713,-500.0,0.00013945,2]
[404682256,1770435039722,-89.84470024,0.00013945,2]
[404682257,1770435039878,-410.15529976,0.00013945,2]
[404682258,1770435039887,-1897.74470024,0.00013946,2]
[404682259,1770435039935,-2108279.44087544,0.00013946,2]
[404682260,1770435039945,-485.38780027,0.00013946,2]
[404682261,1770435039956,-355.3621435,0.00013946,2]
[404682267,1770435045545,-393.3600005,0.00013946,2]
[404682268,1770435045607,-2479.92067609,0.00013946,2]
[404682269,1770435045772,-2685.27,0.00013946,2]
[404682270,1770435045828,-520.36767113,0.00013946,2]
[404682271,1770435045839,-6019.9928199,0.00013946,2]
[404682280,1770435101418,499.999999,0.00035,120]
[404682281,1770435145141,499.999999,0.00035,120]
[404682282,1770435163848,500.0,0.00035,120]
[404682283,1770435179025,500.0,0.00035,120]
[404682284,1770435198871,500.0,0.00035,120]
[404682285,1770435223476,500.0,0.00035,120]
[404682286,1770435243535,500.0,0.00035,120]
[404682287,1770435260390,500.0,0.00035,120]
[404682288,1770435322682,500.0,0.00035,120]
[404682289,1770435341043,500.0,0.00035,120]
[404682290,1770435357991,5000.0,0.00035616,120]
[404682291,1770435366936,500.0,0.00035,120]
[404682292,1770435382049,500.0,0.00035,120]
[404682293,1770435445212,500.0,0.00035,120]
[404682294,1770435503367,500.0,0.00035,120]
[404682295,1770435530145,500.0,0.00035,120]
[404682296,1770435567933,777.84714637,0.00035616,120]
[404682297,1770435615399,500.0,0.00035,120]
[404682298,1770435631917,500.0,0.00035,120]
[404682299,1770435651168,500.0,0.00035,120]
[404682300,1770435670305,500.0,0.00035,120]
[404682301,1770435692257,500.0,0.00035,120]
[404682302,1770435714372,500.0,0.00035,120]
[404682303,1770435733108,499.999999,0.00035,120]
[404682304,1770435790600,500.0,0.00035,120]
[404682305,1770435820800,249.39818163,0.00035616,120]
[404682306,1770435855687,565.01723361,0.00035,120]
[404682317,1770436231842,-451.28744886,0.00011233,2]
[404682322,1770436237729,-1407.60412328,0.00011233,2]
[404682323,1770436237783,-1650.0,0.00011233,2]
[404682324,1770436237795,-241.08842786,0.00011233,2]
[404682325,1770436237804,-195.0,0.00011268,2]
[404682326,1770436237813,-195.0,0.00011303,2]
[404682327,1770436237823,-195.0,0.00011737,2]
[404682328,1770436237833,-195.0,0.00012356,2]
[404682329,1770436237843,-282.45138859,0.00012356,2]
[404682330,1770436237852,-195.0,0.00012356,2]
[404682331,1770436237863,-502.0,0.00012904,2]
[404682332,1770436237872,-200.0,0.00012975,2]
[404682333,1770436237881,-325.02,0.00013083,2]
[404682334,1770436237891,-152.59,0.00013161,2]
[404682335,1770436237900,-35787.0,0.00013246,2]
[404682336,1770436237909,-80808.63096734,0.00013496,2]
[404682337,1770436237920,-1086.4395005,0.00013496,2]
[404682344,1770436239831,-565.36964925,0.00013495,2]
[404682345,1770436239990,-1.60217346,0.00013495,2]
[404682346,1770436240000,-353.58282654,0.00013496,2]
[404682347,1770436240095,-245.07902025,0.00013495,2]
[404682348,1770436240104,-2140903.69101233,0.00013496,2]
[404682349,1770436240149,-293.81143762,0.00013496,2]
[404682355,1770436244178,-3439.16975584,0.00013496,2]
[404682384,1770436568011,552.593064,7.945e-05,2]
[404682385,1770436663150,211.76535998,0.00035,120]
[404682388,1770436791580,3417.4796357,0.00012845,120]
[404682394,1770437417864,5000.0,0.00035616,120]
[404682399,1770437431821,-1653.44,0.0001,2]
[404682401,1770437431831,-195.0,0.00011,2]
[404682402,1770437431841,-195.0,0.00011,2]
[404682404,1770437431850,-195.0,0.0001125,2]
[404682405,1770437431861,-133.06,0.00011312,2]
[404682406,1770437431873,-61.94,0.00011312,2]
[404682407,1770437431883,-250.0,0.0001177,2]
[404682408,1770437431892,-195.0,0.00012169,2]
[404682409,1770437431902,-5507.2,0.0001272,2]
[404682410,1770437431911,-3160.38415472,0.00012846,2]
[404682411,1770437431938,-5979.20584528,0.00012846,2]
[404682412,1770437431947,-152.0,0.00012957,3]
[404682413,1770437431957,-1837.58575369,0.00012964,2]
[404682414,1770437431966,-2027.38894736,0.00012972,2]
[404682415,1770437431976,-355.96035412,0.00012972,2]
[404682416,1770437431985,-926.53357783,0.00012972,2]
[404682417,1770437432000,-5503.72879881,0.00012972,2]
[404682418,1770437432043,-442.94342566,0.00012972,2]
[404682431,1770437437903,-196.1,0.000103,2]
[404682432,1770437437913,-204.54965416,0.00012972,2]
[404682433,1770437437924,-651.0,0.00012972,2]
[404682434,1770437437958,-1358.26945483,0.00012972,2]
[404682435,1770437438013,-2616.11463837,0.00012972,2]
[404682436,1770437438024,-283.15741458,0.00012972,2]
[404682456,1770437440165,-711.56,0.00012972,2]
[404682457,1770437440221,-352.42,0.00012907,2]
[404682458,1770437440231,-675.12771594,0.00012972,2]
[404682459,1770437440240,-703.29824406,0.00012972,2]
[404682460,1770437440252,-915.76,0.00012972,2]
[404682461,1770437440266,-355.54419727,0.00012972,2]
[404682462,1770437440330,-15027.87908897,0.00012972,2]
[404682463,1770437440345,-1776.33289524,0.00013054,2]
[404682464,1770437440354,-295.95172949,0.00013054,2]
[404682465,1770437440363,-150.0,0.00013063,2]
[404682466,1770437440377,-396.88027589,0.00013063,2]
[404682468,1770437440387,-245.07902025,0.00013063,2]
[404682469,1770437440396,-2150710.24119664,0.00013064,2]
[404682472,1770437440407,-10878.42884862,0.00013064,2]
[404682473,1770437440418,-2218.04471527,0.00013064,2]
[404682474,1770437440429,-990.88773711,0.00013064,2]
[404682475,1770437444636,-966.3271354,0.00013064,2]
[404682478,1770437445944,-2608.63388952,0.00013064,2]
[404682480,1770437446275,-1868.3,0.00013064,2]
[404682482,1770437446288,-814.345,0.00013064,2]
[404682493,1770437675349,8068.0,0.000356,120]
[404682494,1770438400281,150302.86005047,0.0003,120]
[404682495,1770438407095,-398.08280932,0.000108,2]
[404682496,1770438407120,-0.00140204,0.00011229,2]
[404682499,1770438504710,6719.37486282,0.0003,120]
[404682567,1770438632101,-195.0,0.00011229,2]
[404682568,1770438632110,-300.0,0.00011229,2]
[404682569,1770438632124,-150.0,0.00011229,2]
[404682570,1770438632133,-195.0,0.00011229,2]
[404682571,1770438632143,-245.07902025,0.00011229,2]
[404682572,1770438632152,-46.58921501,0.00011229,2]
[404682573,1770438632165,-432.99172464,0.00011229,2]
[404682574,1770438632174,-1565.00827536,0.0001123,2]
[404682575,1770438632185,-4806.78079529,0.0001123,2]
[404682576,1770438632196,-710.05,0.0001123,2]
[404682577,1770438632216,-497.55228091,0.0001123,2]
[404682578,1770438632226,-575.5876787,0.0001123,2]
[404682579,1770438632238,-584.79955105,0.0001123,2]
[404682580,1770438632250,-412.77728069,0.0001123,2]
[404682581,1770438632261,-387.105,0.0001123,2]
[404682582,1770438632284,-12540.54144071,0.0001123,2]
[404682583,1770438632295,-710.0,0.0001123,2]
[404682584,1770438632331,-644.71052742,0.0001123,2]
[404682585,1770438632343,-1642.59694288,0.0001123,2]
[404682586,1770438632354,-755.43232866,0.0001123,2]
[404682587,1770438632365,-659.1457183,0.0001123,2]
[404682588,1770438632388,-3285.931077,0.0001123,2]
[404682612,1770438638160,-1372.33511352,0.0001123,2]
[404682614,1770438638175,-1000.0,0.0001123,2]
[404682616,1770438638186,-3558.3,0.0001123,2]
[404682617,1770438638219,-1747.51638426,0.0001123,2]
[404682618,1770438638239,-58482.17914005,0.0001123,2]
[404682619,1770438638249,-195.0,0.0001123,2]
[404682620,1770438638258,-3124.98,0.00011233,2]
[404682621,1770438638268,-166.66,0.00011243,2]
[404682622,1770438638277,-166.66,0.00011479,2]
[404682623,1770438638287,-1839.8707263,0.00011494,2]
[404682624,1770438638296,-823.53,0.00011616,2]